{"text_format":"1","workbook":"xlsx","n_sheets":14,"sheets":["Note for the TA","Instructions","Dashboard","Data ---->","2018 NYT BSL","2019 NYT BSL","2020 NYT BSL","2021 NYT BSL","Backup----->","Sheet2","Sheet4","Time Tracker","Sheet1","VBA"],"not_rendered":{"charts":0,"images":1,"macros":1,"external_links":0,"defined_names":12,"comments":1,"pivot_tables":0},"unopened":[],"bounds":{"document_bytes":16777216,"sheet_cells":100000,"rows_first":2000,"rows_last":500,"rows_between":2000,"halvings":0,"cell_chars":16384,"cell_head_chars":4096},"cells_cut":0,"cells_raw":0,"read":"whole","date_system":"1900"}

{"sheet":"Note for the TA","index":0,"n_rows":0,"n_cols":0,"rows_kept":0,"cut":false,"hidden":false,"merged":[]}

{"sheet":"Instructions","index":1,"n_rows":0,"n_cols":0,"rows_kept":0,"cut":false,"hidden":false,"merged":[]}

{"sheet":"Dashboard","index":2,"n_rows":32,"n_cols":17,"rows_kept":32,"cut":false,"hidden":false,"merged":[[1,0,1,3]]}
[null,null,null,null,null,null,"Books",null,"Genre",null,"Listed Paperback Price"]
["Find the Year and Author you want to Know about",null,null,null,null,1,{"$f":"IFERROR(_xlfn.UNIQUE(IF($B$4=2018,_xlfn._xlws.FILTER(Table_0__4[Column1],Table_0__4[Author]=Dashboard!$D$4),IF($B$4=2019,_xlfn._xlws.FILTER(Table_0__3[Column1],Table_0__3[Author]=Dashboard!$D$4),IF(Dashboard!$B$4=2020,_xlfn._xlws.FILTER(Table_0__2[Column1],Table_0__2[Author]=Dashboard!$D$4),IF(Dashboard!$B$4=2021,_xlfn._xlws.FILTER(Table_0[Column2],Table_0[Author]=Dashboard!$D$4),\"\"))))),\"No Book Listed\")","v":"Where the Crawdads Sing"},null,{"$f":"IFERROR(IF($B$4=2018,VLOOKUP($G$2,Table_0__4[[Column1]:[Price]],3,FALSE),IF(Dashboard!$B$4=2019,VLOOKUP(Dashboard!$G$2,Table_0__3[[Column1]:[Price]],3,FALSE),IF(Dashboard!$B$4=2020,VLOOKUP(Dashboard!$G$2,Table_0__2[[Column1]:[Price]],3,FALSE),IF(Dashboard!$B$4=2021,VLOOKUP(Dashboard!$G$2,Table_0[[Column2]:[Price]],3,FALSE),\"\")))),\"No Book Listed\")","v":"Romance Novel"},null,{"$f":"IFERROR(IF($B$4=2018,VLOOKUP($G2,Table_0__4[[Column1]:[Price]],4,FALSE),IF(Dashboard!$B$4=2019,VLOOKUP(Dashboard!$G2,Table_0__3[[Column1]:[Price]],4,FALSE),IF(Dashboard!$B$4=2020,VLOOKUP(Dashboard!$G2,Table_0__2[[Column1]:[Price]],4,FALSE),IF(Dashboard!$B$4=2021,VLOOKUP(Dashboard!$G2,Table_0[[Column2]:[Price]],4,FALSE),\"\")))),\"No Book Listed\")","v":18}]
[null,"Year",null,"Author",null,2,null,null,{"$f":"IFERROR(IF($B$4=2018,VLOOKUP($G3,Table_0__4[[Column1]:[Price]],3,FALSE),IF(Dashboard!$B$4=2019,VLOOKUP(Dashboard!$G3,Table_0__3[[Column1]:[Price]],3,FALSE),IF(Dashboard!$B$4=2020,VLOOKUP(Dashboard!$G3,Table_0__2[[Column1]:[Price]],3,FALSE),IF(Dashboard!$B$4=2021,VLOOKUP(Dashboard!$G3,Table_0[[Column2]:[Price]],3,FALSE),\"\")))),\"\")","v":""},null,{"$f":"IFERROR(IF($B$4=2018,VLOOKUP($G3,Table_0__4[[Column1]:[Price]],4,FALSE),IF(Dashboard!$B$4=2019,VLOOKUP(Dashboard!$G3,Table_0__3[[Column1]:[Price]],4,FALSE),IF(Dashboard!$B$4=2020,VLOOKUP(Dashboard!$G3,Table_0__2[[Column1]:[Price]],4,FALSE),IF(Dashboard!$B$4=2021,VLOOKUP(Dashboard!$G3,Table_0[[Column2]:[Price]],4,FALSE),\"\")))),\"\")","v":""}]
[2,2019,null,"Delia Owens",null,3,null,null,{"$f":"IFERROR(IF($B$4=2018,VLOOKUP($G4,Table_0__4[[Column1]:[Price]],3,FALSE),IF(Dashboard!$B$4=2019,VLOOKUP(Dashboard!$G4,Table_0__3[[Column1]:[Price]],3,FALSE),IF(Dashboard!$B$4=2020,VLOOKUP(Dashboard!$G4,Table_0__2[[Column1]:[Price]],3,FALSE),IF(Dashboard!$B$4=2021,VLOOKUP(Dashboard!$G4,Table_0[[Column2]:[Price]],3,FALSE),\"\")))),\"\")","v":""},null,{"$f":"IFERROR(IF($B$4=2018,VLOOKUP($G4,Table_0__4[[Column1]:[Price]],4,FALSE),IF(Dashboard!$B$4=2019,VLOOKUP(Dashboard!$G4,Table_0__3[[Column1]:[Price]],4,FALSE),IF(Dashboard!$B$4=2020,VLOOKUP(Dashboard!$G4,Table_0__2[[Column1]:[Price]],4,FALSE),IF(Dashboard!$B$4=2021,VLOOKUP(Dashboard!$G4,Table_0[[Column2]:[Price]],4,FALSE),\"\")))),\"\")","v":""}]
["Input","Output",null,null,null,4,null,null,{"$f":"IFERROR(IF($B$4=2018,VLOOKUP($G5,Table_0__4[[Column1]:[Price]],3,FALSE),IF(Dashboard!$B$4=2019,VLOOKUP(Dashboard!$G5,Table_0__3[[Column1]:[Price]],3,FALSE),IF(Dashboard!$B$4=2020,VLOOKUP(Dashboard!$G5,Table_0__2[[Column1]:[Price]],3,FALSE),IF(Dashboard!$B$4=2021,VLOOKUP(Dashboard!$G5,Table_0[[Column2]:[Price]],3,FALSE),\"\")))),\"\")","v":""},null,{"$f":"IFERROR(IF($B$4=2018,VLOOKUP($G5,Table_0__4[[Column1]:[Price]],4,FALSE),IF(Dashboard!$B$4=2019,VLOOKUP(Dashboard!$G5,Table_0__3[[Column1]:[Price]],4,FALSE),IF(Dashboard!$B$4=2020,VLOOKUP(Dashboard!$G5,Table_0__2[[Column1]:[Price]],4,FALSE),IF(Dashboard!$B$4=2021,VLOOKUP(Dashboard!$G5,Table_0[[Column2]:[Price]],4,FALSE),\"\")))),\"\")","v":""}]
[]
[null,"Dates Book 1 was on Top",null,"Weeks it was up",null,null,"Dates Book 2 was on Top",null,"Weeks it was up",null,"Dates Book 3 was on Top",null,"Weeks it was up",null,"Dates Book 4 was on Top",null,"Weeks it was up"]
[null,{"$f":"IFERROR(IF($B$4=2018,_xlfn._xlws.FILTER(Table_0__4[Column2],Table_0__4[Column1]=Dashboard!$G$2),IF($B$4=2019,_xlfn._xlws.FILTER(Table_0__3[Column2],Table_0__3[Column1]=Dashboard!$G$2),IF($B$4=2020,_xlfn._xlws.FILTER(Table_0__2[Column2],Table_0__2[Column1]=Dashboard!$G$2),IF($B$4=2021,_xlfn._xlws.FILTER(Table_0[Column1],Table_0[Column2]=Dashboard!$G$2))))),\"No Book Listed\")","v":"2021-02-03"},null,{"$f":"IF(COUNT(B8:B32)=0,\"No Book Listed\",COUNT(B8:B32))","v":25},null,null,{"$f":"IFERROR(IF($B$4=2018,_xlfn._xlws.FILTER(Table_0__4[Column2],Table_0__4[Column1]=$G$3),IF($B$4=2019,_xlfn._xlws.FILTER(Table_0__3[Column2],Table_0__3[Column1]=$G$3),IF($B$4=2020,_xlfn._xlws.FILTER(Table_0__2[Column2],Table_0__2[Column1]=$G$3),IF($B$4=2021,_xlfn._xlws.FILTER(Table_0[Column1],Table_0[Column2]=$G$3))))),\"No Book Listed\")","v":"No Book Listed"},null,{"$f":"IF(COUNT(G8:G32)=0,\"No Book Listed\",COUNT(G8:G32))","v":"No Book Listed"},null,{"$f":"IFERROR(IF($B$4=2018,_xlfn._xlws.FILTER(Table_0__4[Column2],Table_0__4[Column1]=$G$4),IF($B$4=2019,_xlfn._xlws.FILTER(Table_0__3[Column2],Table_0__3[Column1]=$G$4),IF($B$4=2020,_xlfn._xlws.FILTER(Table_0__2[Column2],Table_0__2[Column1]=$G$4),IF($B$4=2021,_xlfn._xlws.FILTER(Table_0[Column1],Table_0[Column2]=$G$4))))),\"No Book Listed\")","v":"No Book Listed"},null,{"$f":"IF(COUNT(K8:K32)=0,\"No Book Listed\",COUNT(K8:K32))","v":"No Book Listed"},null,{"$f":"IFERROR(IF($B$4=2018,_xlfn._xlws.FILTER(Table_0__4[Column2],Table_0__4[Column1]=$G$5),IF($B$4=2019,_xlfn._xlws.FILTER(Table_0__3[Column2],Table_0__3[Column1]=$G$5),IF($B$4=2020,_xlfn._xlws.FILTER(Table_0__2[Column2],Table_0__2[Column1]=$G$5),IF($B$4=2021,_xlfn._xlws.FILTER(Table_0[Column1],Table_0[Column2]=$G$5))))),\"No Book Listed\")","v":"No Book Listed"},null,{"$f":"IF(COUNT(O8:O32)=0,\"No Book Listed\",COUNT(O8:O32))","v":"No Book Listed"}]
[null,"2021-02-10"]
[null,"2021-02-17"]
[null,"2021-03-03"]
[null,"2021-03-10"]
[null,"2021-03-17"]
[null,"2021-03-24"]
[null,"2021-03-31"]
[null,"2021-04-07"]
[null,"2021-04-14"]
[null,"2021-04-21"]
[null,"2021-04-28"]
[null,"2021-05-26"]
[null,"2021-06-02"]
[null,"2021-06-09"]
[null,"2021-06-16"]
[null,"2021-06-23"]
[null,"2021-06-30"]
[null,"2021-07-14"]
[null,"2021-07-21"]
[null,"2021-08-18"]
[null,"2021-08-25"]
[null,"2021-09-01"]
[null,"2021-09-08"]
[null,"2021-12-29"]

{"sheet":"Data ---->","index":3,"n_rows":0,"n_cols":0,"rows_kept":0,"cut":false,"hidden":false,"merged":[]}

{"sheet":"2018 NYT BSL","index":4,"n_rows":53,"n_cols":11,"rows_kept":53,"cut":false,"hidden":false,"merged":[]}
["Date","Book","Author","Column1","Column2","Genre","Price"]
["2018-01-07","Origin","Dan Brown",{"$f":"Table_0__4[[#This Row],[Book]]","v":"Origin"},{"$f":"Table_0__4[[#This Row],[Date]]","v":"2018-01-07"},"Crime Mystery Novel",8.35,null,"Dan Brown",null,{"$f":"_xlfn.UNIQUE(Table_0__4[Genre])","v":"Crime Mystery Novel"}]
["2018-01-14","The People vs. Alex Cross","James Patterson",{"$f":"Table_0__4[[#This Row],[Book]]","v":"The People vs. Alex Cross"},{"$f":"Table_0__4[[#This Row],[Date]]","v":"2018-01-14"},"Thriller Fiction",9.99,null,"James Patterson",null,"Thriller Fiction"]
["2018-01-21","The Woman in the Window","A.J. Finn",{"$f":"Table_0__4[[#This Row],[Book]]","v":"The Woman in the Window"},{"$f":"Table_0__4[[#This Row],[Date]]","v":"2018-01-21"},"Thriller Fiction Novel",6.25,null,"A.J. Finn",null,"Thriller Fiction Novel"]
["2018-01-28","The Woman in the Window","A.J. Finn",{"$f":"Table_0__4[[#This Row],[Book]]","v":"The Woman in the Window"},{"$f":"Table_0__4[[#This Row],[Date]]","v":"2018-01-28"},"Thriller Fiction Novel",6.25,null,"Douglas Preston and Lincoln Child",null,"Mystery Thriller Fiction"]
["2018-02-04","City of Endless Night","Douglas Preston and Lincoln Child",{"$f":"Table_0__4[[#This Row],[Book]]","v":"City of Endless Night"},{"$f":"Table_0__4[[#This Row],[Date]]","v":"2018-02-04"},"Mystery Thriller Fiction",9.99,null,"Christine Feehan",null,"Romance Novel"]
["2018-02-11","Judgment Road","Christine Feehan",{"$f":"Table_0__4[[#This Row],[Book]]","v":"Judgment Road"},{"$f":"Table_0__4[[#This Row],[Date]]","v":"2018-02-11"},"Romance Novel",7.99,null,"J.D. Robb",null,"Mystery Suspense Novel"]
["2018-02-18","Dark in Death","J.D. Robb",{"$f":"Table_0__4[[#This Row],[Book]]","v":"Dark in Death"},{"$f":"Table_0__4[[#This Row],[Date]]","v":"2018-02-18"},"Mystery Suspense Novel",5.87,null,"Kristin Hannah",null,"Domestic Fiction Novel"]
["2018-02-25","The Great Alone","Kristin Hannah",{"$f":"Table_0__4[[#This Row],[Book]]","v":"The Great Alone"},{"$f":"Table_0__4[[#This Row],[Date]]","v":"2018-02-25"},"Domestic Fiction Novel",11.74,null,"Patricia Briggs",null,"Supernatural Fiction"]
["2018-03-04","The Great Alone","Kristin Hannah",{"$f":"Table_0__4[[#This Row],[Book]]","v":"The Great Alone"},{"$f":"Table_0__4[[#This Row],[Date]]","v":"2018-03-04"},"Domestic Fiction Novel",11.74,null,"Clive Cussler and Graham Brown",null,"Thriller"]
["2018-03-11","The Great Alone","Kristin Hannah",{"$f":"Table_0__4[[#This Row],[Book]]","v":"The Great Alone"},{"$f":"Table_0__4[[#This Row],[Date]]","v":"2018-03-11"},"Domestic Fiction Novel",11.74,null,"Danielle Steel",null,"Science Fiction"]
["2018-03-18","The Great Alone","Kristin Hannah",{"$f":"Table_0__4[[#This Row],[Book]]","v":"The Great Alone"},{"$f":"Table_0__4[[#This Row],[Date]]","v":"2018-03-18"},"Domestic Fiction Novel",11.74,null,"C. J. Box",null,"Thriller Crime Fiction"]
["2018-03-25","Burn Bright","Patricia Briggs",{"$f":"Table_0__4[[#This Row],[Book]]","v":"Burn Bright"},{"$f":"Table_0__4[[#This Row],[Date]]","v":"2018-03-25"},"Supernatural Fiction",8.99,null,"Ernest Cline",null,"Thriller Mystery Fiction"]
["2018-04-01","The Rising Sea","Clive Cussler and Graham Brown",{"$f":"Table_0__4[[#This Row],[Book]]","v":"The Rising Sea"},{"$f":"Table_0__4[[#This Row],[Date]]","v":"2018-04-01"},"Thriller",9.99,null,"J.R. Ward",null,"Thriller Novel Fiction"]
["2018-04-08","Accidental Heroes","Danielle Steel",{"$f":"Table_0__4[[#This Row],[Book]]","v":"Accidental Heroes"},{"$f":"Table_0__4[[#This Row],[Date]]","v":"2018-04-08"},"Thriller Fiction Novel",8.99,null,"David Baldacci",null,"Thriller Mystery Novel"]
["2018-04-15","The Disappeared","C. J. Box",{"$f":"Table_0__4[[#This Row],[Book]]","v":"The Disappeared"},{"$f":"Table_0__4[[#This Row],[Date]]","v":"2018-04-15"},"Thriller Fiction Novel",8.99,null,"John Sandford",null,"Spy Thriller Fiction"]
["2018-04-22","Ready Player One","Ernest Cline",{"$f":"Table_0__4[[#This Row],[Book]]","v":"Ready Player One"},{"$f":"Table_0__4[[#This Row],[Date]]","v":"2018-04-22"},"Science Fiction",9.9499999999999993,null,"James Patterson and Maxine Paetro",null,"Thriller Romance Novel"]
["2018-04-29","The Thief","J.R. Ward",{"$f":"Table_0__4[[#This Row],[Book]]","v":"The Thief"},{"$f":"Table_0__4[[#This Row],[Date]]","v":"2018-04-29"},"Romance Novel",8.99,null,"Stephen King",null,"Romance Comedy Novel"]
["2018-05-06","The Fallen","David Baldacci",{"$f":"Table_0__4[[#This Row],[Book]]","v":"The Fallen"},{"$f":"Table_0__4[[#This Row],[Date]]","v":"2018-05-06"},"Thriller Crime Fiction",9.99,null,"Nora Roberts",null,"Mystery Crime Novel"]
["2018-05-13","Twisted Prey","John Sandford",{"$f":"Table_0__4[[#This Row],[Book]]","v":"Twisted Prey"},{"$f":"Table_0__4[[#This Row],[Date]]","v":"2018-05-13"},"Thriller Mystery Fiction",8.99,null,"James Patterson and Bill Clinton",null,"Thriller Novel "]
["2018-05-20","The 17th Suspect","James Patterson and Maxine Paetro",{"$f":"Table_0__4[[#This Row],[Book]]","v":"The 17th Suspect"},{"$f":"Table_0__4[[#This Row],[Date]]","v":"2018-05-20"},"Thriller Mystery Fiction",9.51,null,"Daniel Silva",null,"Thriller Novel"]
["2018-05-27","The 17th Suspect","James Patterson and Maxine Paetro",{"$f":"Table_0__4[[#This Row],[Book]]","v":"The 17th Suspect"},{"$f":"Table_0__4[[#This Row],[Date]]","v":"2018-05-27"},"Thriller Mystery Fiction",9.51,null,"Sandra Brown",null,"Fantasy Fiction"]
["2018-06-03","The Cast","Danielle Steel",{"$f":"Table_0__4[[#This Row],[Book]]","v":"The Cast"},{"$f":"Table_0__4[[#This Row],[Date]]","v":"2018-06-03"},"Romance Novel",8.99,null,"Kevin Kwan",null,"Mystery Thriller"]
["2018-06-10","The Outsider","Stephen King",{"$f":"Table_0__4[[#This Row],[Book]]","v":"The Outsider"},{"$f":"Table_0__4[[#This Row],[Date]]","v":"2018-06-10"},"Thriller Novel Fiction",10.99,null,"James Patterson and Nancy Allen",null,"Young Adult Fiction"]
["2018-06-17","Shelter in Place","Nora Roberts",{"$f":"Table_0__4[[#This Row],[Book]]","v":"Shelter in Place"},{"$f":"Table_0__4[[#This Row],[Date]]","v":"2018-06-17"},"Romance Novel",8.99,null,"Robert Galbraith"]
["2018-06-24","The President Is Missing","James Patterson and Bill Clinton",{"$f":"Table_0__4[[#This Row],[Book]]","v":"The President Is Missing"},{"$f":"Table_0__4[[#This Row],[Date]]","v":"2018-06-24"},"Thriller Mystery Novel",10.61,null,"Kyle Mills"]
["2018-07-01","The President Is Missing","James Patterson and Bill Clinton",{"$f":"Table_0__4[[#This Row],[Book]]","v":"The President Is Missing"},{"$f":"Table_0__4[[#This Row],[Date]]","v":"2018-07-01"},"Thriller Mystery Novel",10.61,null,"Jodi Picoult"]
["2018-07-08","The President Is Missing","James Patterson and Bill Clinton",{"$f":"Table_0__4[[#This Row],[Book]]","v":"The President Is Missing"},{"$f":"Table_0__4[[#This Row],[Date]]","v":"2018-07-08"},"Thriller Mystery Novel",10.61,null,"John Sanford"]
["2018-07-15","The President Is Missing","James Patterson and Bill Clinton",{"$f":"Table_0__4[[#This Row],[Book]]","v":"The President Is Missing"},{"$f":"Table_0__4[[#This Row],[Date]]","v":"2018-07-15"},"Thriller Mystery Novel",10.61,null,"Nicholas Sparks"]
["2018-07-22","The President Is Missing","James Patterson and Bill Clinton",{"$f":"Table_0__4[[#This Row],[Book]]","v":"The President Is Missing"},{"$f":"Table_0__4[[#This Row],[Date]]","v":"2018-07-22"},"Thriller Mystery Novel",10.61,null,"John Grisham"]
["2018-07-29","The President Is Missing","James Patterson and Bill Clinton",{"$f":"Table_0__4[[#This Row],[Book]]","v":"The President Is Missing"},{"$f":"Table_0__4[[#This Row],[Date]]","v":"2018-07-29"},"Thriller Mystery Novel",10.61,null,"Michael Connelly"]
["2018-08-05","The Other Woman","Daniel Silva",{"$f":"Table_0__4[[#This Row],[Book]]","v":"The Other Woman"},{"$f":"Table_0__4[[#This Row],[Date]]","v":"2018-08-05"},"Spy Thriller Fiction",9.99,null,"Lee Child"]
["2018-08-12","Origin","Dan Brown",{"$f":"Table_0__4[[#This Row],[Book]]","v":"Origin"},{"$f":"Table_0__4[[#This Row],[Date]]","v":"2018-08-12"},"Crime Mystery Novel",8.35,null,"Janet Evanovich"]
["2018-08-19","Origin","Dan Brown",{"$f":"Table_0__4[[#This Row],[Book]]","v":"Origin"},{"$f":"Table_0__4[[#This Row],[Date]]","v":"2018-08-19"},"Crime Mystery Novel",8.35,null,"George R. R. Martin"]
["2018-08-26","Tailspin","Sandra Brown",{"$f":"Table_0__4[[#This Row],[Book]]","v":"Tailspin"},{"$f":"Table_0__4[[#This Row],[Date]]","v":"2018-08-26"},"Thriller Romance Novel",8.99,null,"Louise Penny"]
["2018-09-02","Crazy Rich Asians","Kevin Kwan",{"$f":"Table_0__4[[#This Row],[Book]]","v":"Crazy Rich Asians"},{"$f":"Table_0__4[[#This Row],[Date]]","v":"2018-09-02"},"Romance Comedy Novel",9.99]
["2018-09-09","Crazy Rich Asians","Kevin Kwan",{"$f":"Table_0__4[[#This Row],[Book]]","v":"Crazy Rich Asians"},{"$f":"Table_0__4[[#This Row],[Date]]","v":"2018-09-09"},"Romance Comedy Novel",9.99]
["2018-09-16","Crazy Rich Asians","Kevin Kwan",{"$f":"Table_0__4[[#This Row],[Book]]","v":"Crazy Rich Asians"},{"$f":"Table_0__4[[#This Row],[Date]]","v":"2018-09-16"},"Romance Comedy Novel",9.99]
["2018-09-23","Leverage In Death","J.D. Robb",{"$f":"Table_0__4[[#This Row],[Book]]","v":"Leverage In Death"},{"$f":"Table_0__4[[#This Row],[Date]]","v":"2018-09-23"},"Science Fiction",7.99]
["2018-09-30","Juror #3","James Patterson and Nancy Allen",{"$f":"Table_0__4[[#This Row],[Book]]","v":"Juror #3"},{"$f":"Table_0__4[[#This Row],[Date]]","v":"2018-09-30"},"Thriller Mystery Fiction",9.99]
["2018-10-07","Lethal White","Robert Galbraith",{"$f":"Table_0__4[[#This Row],[Book]]","v":"Lethal White"},{"$f":"Table_0__4[[#This Row],[Date]]","v":"2018-10-07"},"Mystery Crime Novel",16.989999999999998]
["2018-10-14","Vince Flynn: Red War","Kyle Mills",{"$f":"Table_0__4[[#This Row],[Book]]","v":"Vince Flynn: Red War"},{"$f":"Table_0__4[[#This Row],[Date]]","v":"2018-10-14"},"Thriller Novel ",9.99]
["2018-10-21","A Spark Of Light","Jodi Picoult",{"$f":"Table_0__4[[#This Row],[Book]]","v":"A Spark Of Light"},{"$f":"Table_0__4[[#This Row],[Date]]","v":"2018-10-21"},"Thriller Novel",17.989999999999998]
["2018-10-28","Holy Ghost","John Sanford",{"$f":"Table_0__4[[#This Row],[Book]]","v":"Holy Ghost"},{"$f":"Table_0__4[[#This Row],[Date]]","v":"2018-10-28"},"Thriller Mystery Fiction",9.99]
["2018-11-04","Every Breath","Nicholas Sparks",{"$f":"Table_0__4[[#This Row],[Book]]","v":"Every Breath"},{"$f":"Table_0__4[[#This Row],[Date]]","v":"2018-11-04"},"Romance Novel",8.99]
["2018-11-11","The Reckoning","John Grisham",{"$f":"Table_0__4[[#This Row],[Book]]","v":"The Reckoning"},{"$f":"Table_0__4[[#This Row],[Date]]","v":"2018-11-11"},"Thriller Novel",17]
["2018-11-18","Dark Sacred Night","Michael Connelly",{"$f":"Table_0__4[[#This Row],[Book]]","v":"Dark Sacred Night"},{"$f":"Table_0__4[[#This Row],[Date]]","v":"2018-11-18"},"Thriller Novel",9.99]
["2018-11-25","Past Tense","Lee Child",{"$f":"Table_0__4[[#This Row],[Book]]","v":"Past Tense"},{"$f":"Table_0__4[[#This Row],[Date]]","v":"2018-11-25"},"Thriller Mystery Fiction",9.99]
["2018-12-02","Look Alive Twenty-Five","Janet Evanovich",{"$f":"Table_0__4[[#This Row],[Book]]","v":"Look Alive Twenty-Five"},{"$f":"Table_0__4[[#This Row],[Date]]","v":"2018-12-02"},"Romance Novel",9.99]
["2018-12-09","Fire and Blood","George R. R. Martin",{"$f":"Table_0__4[[#This Row],[Book]]","v":"Fire and Blood"},{"$f":"Table_0__4[[#This Row],[Date]]","v":"2018-12-09"},"Fantasy Fiction",16.989999999999998]
["2018-12-16","Kingdom of the Blind","Louise Penny",{"$f":"Table_0__4[[#This Row],[Book]]","v":"Kingdom of the Blind"},{"$f":"Table_0__4[[#This Row],[Date]]","v":"2018-12-16"},"Mystery Thriller",17.989999999999998]
["2018-12-23","Of Blood and Bone","Nora Roberts",{"$f":"Table_0__4[[#This Row],[Book]]","v":"Of Blood and Bone"},{"$f":"Table_0__4[[#This Row],[Date]]","v":"2018-12-23"},"Young Adult Fiction",8.99]
["2018-12-30","The Reckoning","John Grisham",{"$f":"Table_0__4[[#This Row],[Book]]","v":"The Reckoning"},{"$f":"Table_0__4[[#This Row],[Date]]","v":"2018-12-30"},"Thriller Novel",17]

{"sheet":"2019 NYT BSL","index":5,"n_rows":53,"n_cols":9,"rows_kept":53,"cut":false,"hidden":false,"merged":[]}
["Date","Book","Author","Column1","Column2","Genre","Price"]
["2021-01-06","The Reckoning","John Grisham",{"$f":"Table_0__3[[#This Row],[Book]]","v":"The Reckoning"},{"$f":"Table_0__3[[#This Row],[Date]]","v":"2021-01-06"},"Thriller Novel",17,null,"John Grisham"]
["2021-01-13","Long Road to Mercy","David Baldacci",{"$f":"Table_0__3[[#This Row],[Book]]","v":"Long Road to Mercy"},{"$f":"Table_0__3[[#This Row],[Date]]","v":"2021-01-13"},"Thriller Novel",9.99,null,"David Baldacci"]
["2021-01-20","Verses for the Dead","Douglas Preston and Lincoln Child",{"$f":"Table_0__3[[#This Row],[Book]]","v":"Verses for the Dead"},{"$f":"Table_0__3[[#This Row],[Date]]","v":"2021-01-20"},"Thriller Novel",15.91,null,"Douglas Preston and Lincoln Child"]
["2021-01-27","Turning Point","Danielle Steel",{"$f":"Table_0__3[[#This Row],[Book]]","v":"Turning Point"},{"$f":"Table_0__3[[#This Row],[Date]]","v":"2021-01-27"},"Romance Novel",7.34,null,"Danielle Steel"]
["2021-02-03","Where the Crawdads Sing","Delia Owens",{"$f":"Table_0__3[[#This Row],[Book]]","v":"Where the Crawdads Sing"},{"$f":"Table_0__3[[#This Row],[Date]]","v":"2021-02-03"},"Romance Novel",18,null,"Delia Owens"]
["2021-02-10","Where the Crawdads Sing","Delia Owens",{"$f":"Table_0__3[[#This Row],[Book]]","v":"Where the Crawdads Sing"},{"$f":"Table_0__3[[#This Row],[Date]]","v":"2021-02-10"},"Romance Novel",18,null,"J. D. Robb"]
["2021-02-17","Where the Crawdads Sing","Delia Owens",{"$f":"Table_0__3[[#This Row],[Book]]","v":"Where the Crawdads Sing"},{"$f":"Table_0__3[[#This Row],[Date]]","v":"2021-02-17"},"Romance Novel",18,null,"John Sandford"]
["2021-02-24","Connections in Death","J. D. Robb",{"$f":"Table_0__3[[#This Row],[Book]]","v":"Connections in Death"},{"$f":"Table_0__3[[#This Row],[Date]]","v":"2021-02-24"},"Thriller Mystery Novel",8.99,null,"James Patterson and Maxine Paetro"]
["2021-03-03","Where the Crawdads Sing","Delia Owens",{"$f":"Table_0__3[[#This Row],[Book]]","v":"Where the Crawdads Sing"},{"$f":"Table_0__3[[#This Row],[Date]]","v":"2021-03-03"},"Romance Novel",18,null,"Elin Hilderbrand"]
["2021-03-10","Where the Crawdads Sing","Delia Owens",{"$f":"Table_0__3[[#This Row],[Book]]","v":"Where the Crawdads Sing"},{"$f":"Table_0__3[[#This Row],[Date]]","v":"2021-03-10"},"Romance Novel",18,null,"Nora Roberts"]
["2021-03-17","Where the Crawdads Sing","Delia Owens",{"$f":"Table_0__3[[#This Row],[Book]]","v":"Where the Crawdads Sing"},{"$f":"Table_0__3[[#This Row],[Date]]","v":"2021-03-17"},"Romance Novel",18,null,"Daniel Silva"]
["2021-03-24","Where the Crawdads Sing","Delia Owens",{"$f":"Table_0__3[[#This Row],[Book]]","v":"Where the Crawdads Sing"},{"$f":"Table_0__3[[#This Row],[Date]]","v":"2021-03-24"},"Romance Novel",18,null,"Louise Penny"]
["2021-03-31","Where the Crawdads Sing","Delia Owens",{"$f":"Table_0__3[[#This Row],[Book]]","v":"Where the Crawdads Sing"},{"$f":"Table_0__3[[#This Row],[Date]]","v":"2021-03-31"},"Romance Novel",18,null,"Stephen King"]
["2021-04-07","Where the Crawdads Sing","Delia Owens",{"$f":"Table_0__3[[#This Row],[Book]]","v":"Where the Crawdads Sing"},{"$f":"Table_0__3[[#This Row],[Date]]","v":"2021-04-07"},"Romance Novel",18,null,"Ta-Nehisi Coates"]
["2021-04-14","Where the Crawdads Sing","Delia Owens",{"$f":"Table_0__3[[#This Row],[Book]]","v":"Where the Crawdads Sing"},{"$f":"Table_0__3[[#This Row],[Date]]","v":"2021-04-14"},"Romance Novel",18,null,"Michael Connelly"]
["2021-04-21","Where the Crawdads Sing","Delia Owens",{"$f":"Table_0__3[[#This Row],[Book]]","v":"Where the Crawdads Sing"},{"$f":"Table_0__3[[#This Row],[Date]]","v":"2021-04-21"},"Romance Novel",18,null,"Lee Child"]
["2021-04-28","Where the Crawdads Sing","Delia Owens",{"$f":"Table_0__3[[#This Row],[Book]]","v":"Where the Crawdads Sing"},{"$f":"Table_0__3[[#This Row],[Date]]","v":"2021-04-28"},"Romance Novel",18,null,"Janet Evanovich"]
["2021-05-05","Redemption","David Baldacci",{"$f":"Table_0__3[[#This Row],[Book]]","v":"Redemption"},{"$f":"Table_0__3[[#This Row],[Date]]","v":"2021-05-05"},"Thriller Mystery",9.8800000000000008]
["2021-05-12","Neon Prey","John Sandford",{"$f":"Table_0__3[[#This Row],[Book]]","v":"Neon Prey"},{"$f":"Table_0__3[[#This Row],[Date]]","v":"2021-05-12"},"Thriller Mystery",6.35]
["2021-05-19","18th Abduction","James Patterson and Maxine Paetro",{"$f":"Table_0__3[[#This Row],[Book]]","v":"18th Abduction"},{"$f":"Table_0__3[[#This Row],[Date]]","v":"2021-05-19"},"Thriller Mystery Fiction",9.99]
["2021-05-26","Where the Crawdads Sing","Delia Owens",{"$f":"Table_0__3[[#This Row],[Book]]","v":"Where the Crawdads Sing"},{"$f":"Table_0__3[[#This Row],[Date]]","v":"2021-05-26"},"Romance Novel",18]
["2021-06-02","Where the Crawdads Sing","Delia Owens",{"$f":"Table_0__3[[#This Row],[Book]]","v":"Where the Crawdads Sing"},{"$f":"Table_0__3[[#This Row],[Date]]","v":"2021-06-02"},"Romance Novel",18]
["2021-06-09","Where the Crawdads Sing","Delia Owens",{"$f":"Table_0__3[[#This Row],[Book]]","v":"Where the Crawdads Sing"},{"$f":"Table_0__3[[#This Row],[Date]]","v":"2021-06-09"},"Romance Novel",18]
["2021-06-16","Where the Crawdads Sing","Delia Owens",{"$f":"Table_0__3[[#This Row],[Book]]","v":"Where the Crawdads Sing"},{"$f":"Table_0__3[[#This Row],[Date]]","v":"2021-06-16"},"Romance Novel",18]
["2021-06-23","Where the Crawdads Sing","Delia Owens",{"$f":"Table_0__3[[#This Row],[Book]]","v":"Where the Crawdads Sing"},{"$f":"Table_0__3[[#This Row],[Date]]","v":"2021-06-23"},"Romance Novel",18]
["2021-06-30","Where the Crawdads Sing","Delia Owens",{"$f":"Table_0__3[[#This Row],[Book]]","v":"Where the Crawdads Sing"},{"$f":"Table_0__3[[#This Row],[Date]]","v":"2021-06-30"},"Romance Novel",18]
["2021-07-07","Summer of '69","Elin Hilderbrand",{"$f":"Table_0__3[[#This Row],[Book]]","v":"Summer of '69"},{"$f":"Table_0__3[[#This Row],[Date]]","v":"2021-07-07"},"Historical Fiction",9.99]
["2021-07-14","Where the Crawdads Sing","Delia Owens",{"$f":"Table_0__3[[#This Row],[Book]]","v":"Where the Crawdads Sing"},{"$f":"Table_0__3[[#This Row],[Date]]","v":"2021-07-14"},"Romance Novel",18]
["2021-07-21","Where the Crawdads Sing","Delia Owens",{"$f":"Table_0__3[[#This Row],[Book]]","v":"Where the Crawdads Sing"},{"$f":"Table_0__3[[#This Row],[Date]]","v":"2021-07-21"},"Romance Novel",18]
["2021-07-28","Under Currents","Nora Roberts",{"$f":"Table_0__3[[#This Row],[Book]]","v":"Under Currents"},{"$f":"Table_0__3[[#This Row],[Date]]","v":"2021-07-28"},"Romance Novel",8.99]
["2021-08-04","The New Girl","Daniel Silva",{"$f":"Table_0__3[[#This Row],[Book]]","v":"The New Girl"},{"$f":"Table_0__3[[#This Row],[Date]]","v":"2021-08-04"},"Thriller Spy Fiction",9.99]
["2021-08-11","One Good Deed","David Baldacci",{"$f":"Table_0__3[[#This Row],[Book]]","v":"One Good Deed"},{"$f":"Table_0__3[[#This Row],[Date]]","v":"2021-08-11"},"Thriller Suspense Fiction",9.99]
["2021-08-18","Where the Crawdads Sing","Delia Owens",{"$f":"Table_0__3[[#This Row],[Book]]","v":"Where the Crawdads Sing"},{"$f":"Table_0__3[[#This Row],[Date]]","v":"2021-08-18"},"Romance Novel",18]
["2021-08-25","Where the Crawdads Sing","Delia Owens",{"$f":"Table_0__3[[#This Row],[Book]]","v":"Where the Crawdads Sing"},{"$f":"Table_0__3[[#This Row],[Date]]","v":"2021-08-25"},"Romance Novel",18]
["2021-09-01","Where the Crawdads Sing","Delia Owens",{"$f":"Table_0__3[[#This Row],[Book]]","v":"Where the Crawdads Sing"},{"$f":"Table_0__3[[#This Row],[Date]]","v":"2021-09-01"},"Romance Novel",18]
["2021-09-08","Where the Crawdads Sing","Delia Owens",{"$f":"Table_0__3[[#This Row],[Book]]","v":"Where the Crawdads Sing"},{"$f":"Table_0__3[[#This Row],[Date]]","v":"2021-09-08"},"Romance Novel",18]
["2021-09-15","A Better Man","Louise Penny",{"$f":"Table_0__3[[#This Row],[Book]]","v":"A Better Man"},{"$f":"Table_0__3[[#This Row],[Date]]","v":"2021-09-15"},"Mystery Thriller",9.99]
["2021-09-22","Vendetta in Death","J. D. Robb",{"$f":"Table_0__3[[#This Row],[Book]]","v":"Vendetta in Death"},{"$f":"Table_0__3[[#This Row],[Date]]","v":"2021-09-22"},"Mystery Fiction",8.99]
["2021-09-29","The Institute","Stephen King",{"$f":"Table_0__3[[#This Row],[Book]]","v":"The Institute"},{"$f":"Table_0__3[[#This Row],[Date]]","v":"2021-09-29"},"Horror Fiction",10.99]
["2021-10-06","The Institute","Stephen King",{"$f":"Table_0__3[[#This Row],[Book]]","v":"The Institute"},{"$f":"Table_0__3[[#This Row],[Date]]","v":"2021-10-06"},"Horror Fiction",10.99]
["2021-10-13","The Water Dancer","Ta-Nehisi Coates",{"$f":"Table_0__3[[#This Row],[Book]]","v":"The Water Dancer"},{"$f":"Table_0__3[[#This Row],[Date]]","v":"2021-10-13"},"Historical Fiction",18]
["2021-10-20","Bloody Genius","John Sandford",{"$f":"Table_0__3[[#This Row],[Book]]","v":"Bloody Genius"},{"$f":"Table_0__3[[#This Row],[Date]]","v":"2021-10-20"},"Mystery Thriller",8.49]
["2021-10-27","The 19th Christmas","James Patterson and Maxine Paetro",{"$f":"Table_0__3[[#This Row],[Book]]","v":"The 19th Christmas"},{"$f":"Table_0__3[[#This Row],[Date]]","v":"2021-10-27"},"Thriller Mystery",16.989999999999998]
["2021-11-03","The Guardians","John Grisham",{"$f":"Table_0__3[[#This Row],[Book]]","v":"The Guardians"},{"$f":"Table_0__3[[#This Row],[Date]]","v":"2021-11-03"},"Thriller Fiction",14.78]
["2021-11-10","The Night Fire","Michael Connelly",{"$f":"Table_0__3[[#This Row],[Book]]","v":"The Night Fire"},{"$f":"Table_0__3[[#This Row],[Date]]","v":"2021-11-10"},"Thriller Mystery",9.99]
["2021-11-17","Blue Moon","Lee Child",{"$f":"Table_0__3[[#This Row],[Book]]","v":"Blue Moon"},{"$f":"Table_0__3[[#This Row],[Date]]","v":"2021-11-17"},"Fantasy Fiction",17]
["2021-11-24","Blue Moon","Lee Child",{"$f":"Table_0__3[[#This Row],[Book]]","v":"Blue Moon"},{"$f":"Table_0__3[[#This Row],[Date]]","v":"2021-11-24"},"Fantasy Fiction",17]
["2021-12-01","Twisted Twenty-Six","Janet Evanovich",{"$f":"Table_0__3[[#This Row],[Book]]","v":"Twisted Twenty-Six"},{"$f":"Table_0__3[[#This Row],[Date]]","v":"2021-12-01"},"Romance Novel",16.82]
["2021-12-08","A Minute to Midnight","David Baldacci",{"$f":"Table_0__3[[#This Row],[Book]]","v":"A Minute to Midnight"},{"$f":"Table_0__3[[#This Row],[Date]]","v":"2021-12-08"},"Thriller",9.99]
["2021-12-15","The Rise of Magicks","Nora Roberts",{"$f":"Table_0__3[[#This Row],[Book]]","v":"The Rise of Magicks"},{"$f":"Table_0__3[[#This Row],[Date]]","v":"2021-12-15"},"Thriller Science Fiction",15.99]
["2021-12-22","The Guardians","John Grisham",{"$f":"Table_0__3[[#This Row],[Book]]","v":"The Guardians"},{"$f":"Table_0__3[[#This Row],[Date]]","v":"2021-12-22"},"Thriller Fiction",14.78]
["2021-12-29","Where The Crawdads Sing","Delia Owens",{"$f":"Table_0__3[[#This Row],[Book]]","v":"Where The Crawdads Sing"},{"$f":"Table_0__3[[#This Row],[Date]]","v":"2021-12-29"},"Romance Novel",18]

{"sheet":"2020 NYT BSL","index":6,"n_rows":53,"n_cols":9,"rows_kept":53,"cut":false,"hidden":false,"merged":[]}
["Date","Book","Author","Column1","Column2","Genre","Price"]
["2020-01-05","Where the Crawdads Sing","Delia Owens",{"$f":"Table_0__2[[#This Row],[Book]]","v":"Where the Crawdads Sing"},{"$f":"Table_0__2[[#This Row],[Date]]","v":"2020-01-05"},"Romance Novel",18,null,"Delia Owens"]
["2020-01-12","Where the Crawdads Sing","Delia Owens",{"$f":"Table_0__2[[#This Row],[Book]]","v":"Where the Crawdads Sing"},{"$f":"Table_0__2[[#This Row],[Date]]","v":"2020-01-12"},"Romance Novel",18,null,"Jeanine Cummins"]
["2020-01-19","Where the Crawdads Sing","Delia Owens",{"$f":"Table_0__2[[#This Row],[Book]]","v":"Where the Crawdads Sing"},{"$f":"Table_0__2[[#This Row],[Date]]","v":"2020-01-19"},"Romance Novel",18,null,"J.D. Robb"]
["2020-01-26","Where the Crawdads Sing","Delia Owens",{"$f":"Table_0__2[[#This Row],[Book]]","v":"Where the Crawdads Sing"},{"$f":"Table_0__2[[#This Row],[Date]]","v":"2020-01-26"},"Romance Novel",18,null,"Mark Greaney"]
["2020-02-02","Where the Crawdads Sing","Delia Owens",{"$f":"Table_0__2[[#This Row],[Book]]","v":"Where the Crawdads Sing"},{"$f":"Table_0__2[[#This Row],[Date]]","v":"2020-02-02"},"Romance Novel",18,null,"James Patterson and James O. Born"]
["2020-02-09","American Dirt","Jeanine Cummins",{"$f":"Table_0__2[[#This Row],[Book]]","v":"American Dirt"},{"$f":"Table_0__2[[#This Row],[Date]]","v":"2020-02-09"},"Thriller Fiction",17.989999999999998,null,"Sarah J. Maas"]
["2020-02-16","American Dirt","Jeanine Cummins",{"$f":"Table_0__2[[#This Row],[Book]]","v":"American Dirt"},{"$f":"Table_0__2[[#This Row],[Date]]","v":"2020-02-16"},"Thriller Fiction",17.989999999999998,null,"Hilary Mantel"]
["2020-02-23","Golden in Death","J.D. Robb",{"$f":"Table_0__2[[#This Row],[Book]]","v":"Golden in Death"},{"$f":"Table_0__2[[#This Row],[Date]]","v":"2020-02-23"},"Thriller Mystery Fiction",8.99,null,"Harlan Coben"]
["2020-03-01","American Dirt","Jeanine Cummins",{"$f":"Table_0__2[[#This Row],[Book]]","v":"American Dirt"},{"$f":"Table_0__2[[#This Row],[Date]]","v":"2020-03-01"},"Thriller Fiction",17.989999999999998,null,"Celeste Ng"]
["2020-03-08","One Minute Out","Mark Greaney",{"$f":"Table_0__2[[#This Row],[Book]]","v":"One Minute Out"},{"$f":"Table_0__2[[#This Row],[Date]]","v":"2020-03-08"},"Thriller Adventure Fiction",14.68,null,"John Sandford"]
["2020-03-15","Blindside","James Patterson and James O. Born",{"$f":"Table_0__2[[#This Row],[Book]]","v":"Blindside"},{"$f":"Table_0__2[[#This Row],[Date]]","v":"2020-03-15"},"Thriller Mystery Fiction",16.989999999999998,null,"David Baldacci"]
["2020-03-22","House of Earth and Blood","Sarah J. Maas",{"$f":"Table_0__2[[#This Row],[Book]]","v":"House of Earth and Blood"},{"$f":"Table_0__2[[#This Row],[Date]]","v":"2020-03-22"},"Fantasy Fiction",18,null,"John Grisham"]
["2020-03-29","The Mirror and the Light","Hilary Mantel",{"$f":"Table_0__2[[#This Row],[Book]]","v":"The Mirror and the Light"},{"$f":"Table_0__2[[#This Row],[Date]]","v":"2020-03-29"},"Historical Fiction",18,null,"James Patterson and Maxine Paetro"]
["2020-04-05","The Boy from the Woods","Harlan Coben",{"$f":"Table_0__2[[#This Row],[Book]]","v":"The Boy from the Woods"},{"$f":"Table_0__2[[#This Row],[Date]]","v":"2020-04-05"},"Thriller Mystery Fiction",8.99,null,"Nora Roberts"]
["2020-04-12","Little Fires Everywhere","Celeste Ng",{"$f":"Table_0__2[[#This Row],[Book]]","v":"Little Fires Everywhere"},{"$f":"Table_0__2[[#This Row],[Date]]","v":"2020-04-12"},"Novel",9.99,null,"Brit Bennett"]
["2020-04-19","Little Fires Everywhere","Celeste Ng",{"$f":"Table_0__2[[#This Row],[Book]]","v":"Little Fires Everywhere"},{"$f":"Table_0__2[[#This Row],[Date]]","v":"2020-04-19"},"Novel",9.99,null,"James Patterson and Brendan DuBois"]
["2020-04-26","Little Fires Everywhere","Celeste Ng",{"$f":"Table_0__2[[#This Row],[Book]]","v":"Little Fires Everywhere"},{"$f":"Table_0__2[[#This Row],[Date]]","v":"2020-04-26"},"Novel",9.99,null,"Elin Hilderbrand"]
["2020-05-03","Masked Prey","John Sandford",{"$f":"Table_0__2[[#This Row],[Book]]","v":"Masked Prey"},{"$f":"Table_0__2[[#This Row],[Date]]","v":"2020-05-03"},"Mystery Thriller",8.99,null,"Daniel Silva"]
["2020-05-10","Walk The Wire","David Baldacci",{"$f":"Table_0__2[[#This Row],[Book]]","v":"Walk The Wire"},{"$f":"Table_0__2[[#This Row],[Date]]","v":"2020-05-10"},"Mystery Thriller",16.989999999999998,null,"Brad Thor"]
["2020-05-17","Camino Winds","John Grisham",{"$f":"Table_0__2[[#This Row],[Book]]","v":"Camino Winds"},{"$f":"Table_0__2[[#This Row],[Date]]","v":"2020-05-17"},"Thriller Mystery Fiction",9.99,null,"Catherine Coulter"]
["2020-05-24","The 20th Victim","James Patterson and Maxine Paetro",{"$f":"Table_0__2[[#This Row],[Book]]","v":"The 20th Victim"},{"$f":"Table_0__2[[#This Row],[Date]]","v":"2020-05-24"},"Thriller Mystery Fiction",16.989999999999998,null,"Danielle Steel"]
["2020-05-31","Camino Winds","John Grisham",{"$f":"Table_0__2[[#This Row],[Book]]","v":"Camino Winds"},{"$f":"Table_0__2[[#This Row],[Date]]","v":"2020-05-31"},"Thriller Mystery Fiction",9.99,null,"Sandra Brown"]
["2020-06-07","Camino Winds","John Grisham",{"$f":"Table_0__2[[#This Row],[Book]]","v":"Camino Winds"},{"$f":"Table_0__2[[#This Row],[Date]]","v":"2020-06-07"},"Thriller Mystery Fiction",9.99,null,"Louise Penny"]
["2020-06-14","Hideaway","Nora Roberts",{"$f":"Table_0__2[[#This Row],[Book]]","v":"Hideaway"},{"$f":"Table_0__2[[#This Row],[Date]]","v":"2020-06-14"},"Romance Novel",17.989999999999998,null,"Ken Follett"]
["2020-06-21","The Vanishing Half","Brit Bennett",{"$f":"Table_0__2[[#This Row],[Book]]","v":"The Vanishing Half"},{"$f":"Table_0__2[[#This Row],[Date]]","v":"2020-06-21"},"Mystery Historical Fiction",27,null,"Jodi Picoult"]
["2020-06-28","The Summer House","James Patterson and Brendan DuBois",{"$f":"Table_0__2[[#This Row],[Book]]","v":"The Summer House"},{"$f":"Table_0__2[[#This Row],[Date]]","v":"2020-06-28"},"Thriller Mystery",16.989999999999998,null,"Nicholas Sparks"]
["2020-07-05","28 Summers","Elin Hilderbrand",{"$f":"Table_0__2[[#This Row],[Book]]","v":"28 Summers"},{"$f":"Table_0__2[[#This Row],[Date]]","v":"2020-07-05"},"Romance Novel",16.989999999999998,null,"Lee Child and Andrew Child"]
["2020-07-12","28 Summers","Elin Hilderbrand",{"$f":"Table_0__2[[#This Row],[Book]]","v":"28 Summers"},{"$f":"Table_0__2[[#This Row],[Date]]","v":"2020-07-12"},"Romance Novel",16.989999999999998,null,"Janet Evanovich"]
["2020-07-19","The Vanishing Half","Brit Bennett",{"$f":"Table_0__2[[#This Row],[Book]]","v":"The Vanishing Half"},{"$f":"Table_0__2[[#This Row],[Date]]","v":"2020-07-19"},"Mystery Historical Fiction",27,null,"Michael Connelly"]
["2020-07-26","The Vanishing Half","Brit Bennett",{"$f":"Table_0__2[[#This Row],[Book]]","v":"The Vanishing Half"},{"$f":"Table_0__2[[#This Row],[Date]]","v":"2020-07-26"},"Mystery Historical Fiction",27,null,"Brandon Sanderson"]
["2020-08-02","The Order","Daniel Silva",{"$f":"Table_0__2[[#This Row],[Book]]","v":"The Order"},{"$f":"Table_0__2[[#This Row],[Date]]","v":"2020-08-02"},"Novel",9.99,null,"Ernest Cline"]
["2020-08-09","Near Dark","Brad Thor",{"$f":"Table_0__2[[#This Row],[Book]]","v":"Near Dark"},{"$f":"Table_0__2[[#This Row],[Date]]","v":"2020-08-09"},"Thriller Adventure Fiction",7.48]
["2020-08-16","Deadlock","Catherine Coulter",{"$f":"Table_0__2[[#This Row],[Book]]","v":"Deadlock"},{"$f":"Table_0__2[[#This Row],[Date]]","v":"2020-08-16"},"Thriller Mystery Fiction",14.99]
["2020-08-23","Where the Crawdads Sing","Delia Owens",{"$f":"Table_0__2[[#This Row],[Book]]","v":"Where the Crawdads Sing"},{"$f":"Table_0__2[[#This Row],[Date]]","v":"2020-08-23"},"Romance Novel",18]
["2020-08-30","Where the Crawdads Sing","Delia Owens",{"$f":"Table_0__2[[#This Row],[Book]]","v":"Where the Crawdads Sing"},{"$f":"Table_0__2[[#This Row],[Date]]","v":"2020-08-30"},"Romance Novel",18]
["2020-09-06","Royal","Danielle Steel",{"$f":"Table_0__2[[#This Row],[Book]]","v":"Royal"},{"$f":"Table_0__2[[#This Row],[Date]]","v":"2020-09-06"},"Romance Novel",8.99]
["2020-09-13","Thick as Thieves","Sandra Brown",{"$f":"Table_0__2[[#This Row],[Book]]","v":"Thick as Thieves"},{"$f":"Table_0__2[[#This Row],[Date]]","v":"2020-09-13"},"Thriller Romantic",16.989999999999998]
["2020-09-20","All the Devils Are Here","Louise Penny",{"$f":"Table_0__2[[#This Row],[Book]]","v":"All the Devils Are Here"},{"$f":"Table_0__2[[#This Row],[Date]]","v":"2020-09-20"},"Mystery Fiction",9.99]
["2020-09-27","Shadows in Death","J.D. Robb",{"$f":"Table_0__2[[#This Row],[Book]]","v":"Shadows in Death"},{"$f":"Table_0__2[[#This Row],[Date]]","v":"2020-09-27"},"Romantic Suspense Novel",8.99]
["2020-10-04","The Evening and the Morning","Ken Follett",{"$f":"Table_0__2[[#This Row],[Book]]","v":"The Evening and the Morning"},{"$f":"Table_0__2[[#This Row],[Date]]","v":"2020-10-04"},"Historical Fiction",20]
["2020-10-11","The Book of Two Ways","Jodi Picoult",{"$f":"Table_0__2[[#This Row],[Book]]","v":"The Book of Two Ways"},{"$f":"Table_0__2[[#This Row],[Date]]","v":"2020-10-11"},"Psychological Fiction",13.99]
["2020-10-18","The Return","Nicholas Sparks",{"$f":"Table_0__2[[#This Row],[Book]]","v":"The Return"},{"$f":"Table_0__2[[#This Row],[Date]]","v":"2020-10-18"},"Romance Novel",12.45]
["2020-10-25","Troubles in Paradise","Elin Hilderbrand",{"$f":"Table_0__2[[#This Row],[Book]]","v":"Troubles in Paradise"},{"$f":"Table_0__2[[#This Row],[Date]]","v":"2020-10-25"},"Domestic Fiction",13.99]
["2020-11-01","A Time for Mercy","John Grisham",{"$f":"Table_0__2[[#This Row],[Book]]","v":"A Time for Mercy"},{"$f":"Table_0__2[[#This Row],[Date]]","v":"2020-11-01"},"Thriller Fiction",18]
["2020-11-08","A Time for Mercy","John Grisham",{"$f":"Table_0__2[[#This Row],[Book]]","v":"A Time for Mercy"},{"$f":"Table_0__2[[#This Row],[Date]]","v":"2020-11-08"},"Thriller Fiction",18]
["2020-11-15","The Sentinel","Lee Child and Andrew Child",{"$f":"Table_0__2[[#This Row],[Book]]","v":"The Sentinel"},{"$f":"Table_0__2[[#This Row],[Date]]","v":"2020-11-15"},"Thriller Fiction",20.13]
["2020-11-22","Fortune and Glory","Janet Evanovich",{"$f":"Table_0__2[[#This Row],[Book]]","v":"Fortune and Glory"},{"$f":"Table_0__2[[#This Row],[Date]]","v":"2020-11-22"},"Mystery Thriller",22.83]
["2020-11-29","The Law of Innocence","Michael Connelly",{"$f":"Table_0__2[[#This Row],[Book]]","v":"The Law of Innocence"},{"$f":"Table_0__2[[#This Row],[Date]]","v":"2020-11-29"},"Mystery Fiction",16.989999999999998]
["2020-12-06","Rhythm of War","Brandon Sanderson",{"$f":"Table_0__2[[#This Row],[Book]]","v":"Rhythm of War"},{"$f":"Table_0__2[[#This Row],[Date]]","v":"2020-12-06"},"Fantasy Fiction",20.99]
["2020-12-13","Ready Player Two","Ernest Cline",{"$f":"Table_0__2[[#This Row],[Book]]","v":"Ready Player Two"},{"$f":"Table_0__2[[#This Row],[Date]]","v":"2020-12-13"},"Science Fiction",28.99]
["2020-12-20","Ready Player Two","Ernest Cline",{"$f":"Table_0__2[[#This Row],[Book]]","v":"Ready Player Two"},{"$f":"Table_0__2[[#This Row],[Date]]","v":"2020-12-20"},"Science Fiction",29.99]
["2020-12-27","Ready Player Two","Ernest Cline",{"$f":"Table_0__2[[#This Row],[Book]]","v":"Ready Player Two"},{"$f":"Table_0__2[[#This Row],[Date]]","v":"2020-12-27"},"Science Fiction",30.99]

{"sheet":"2021 NYT BSL","index":7,"n_rows":30,"n_cols":10,"rows_kept":30,"cut":false,"hidden":false,"merged":[]}
["Date","Book","Author","Column2","Column1","Genre","Price","Publisher"]
["2021-01-03","A Time for Mercy","John Grisham",{"$f":"Table_0[[#This Row],[Book]]","v":"A Time for Mercy"},{"$f":"Table_0[[#This Row],[Date]]","v":"2021-01-03"},"Thriller Fiction",18,"Doubleday",null,"John Grisham"]
["2021-01-10","A Time for Mercy","John Grisham",{"$f":"Table_0[[#This Row],[Book]]","v":"A Time for Mercy"},{"$f":"Table_0[[#This Row],[Date]]","v":"2021-01-10"},"Thriller Fiction",18,"Doubleday",null,"Julia Quinn"]
["2021-01-17","The Duke and I","Julia Quinn",{"$f":"Table_0[[#This Row],[Book]]","v":"The Duke and I"},{"$f":"Table_0[[#This Row],[Date]]","v":"2021-01-17"},"Romance Novel",16.989999999999998,"Avon",null,"James Patterson and James O. Born"]
["2021-01-24","The Duke and I","Julia Quinn",{"$f":"Table_0[[#This Row],[Book]]","v":"The Duke and I"},{"$f":"Table_0[[#This Row],[Date]]","v":"2021-01-24"},"Romance Novel",16.989999999999998,"Avon",null,"Kristin Hannah"]
["2021-01-31","The Duke and I","Julia Quinn",{"$f":"Table_0[[#This Row],[Book]]","v":"The Duke and I"},{"$f":"Table_0[[#This Row],[Date]]","v":"2021-01-31"},"Romance Novel",16.989999999999998,"Avon",null,"Sarah J. Maas"]
["2021-02-07","The Duke and I","Julia Quinn",{"$f":"Table_0[[#This Row],[Book]]","v":"The Duke and I"},{"$f":"Table_0[[#This Row],[Date]]","v":"2021-02-07"},"Romance Novel",16.989999999999998,"Avon",null,"Sister Souljah"]
["2021-02-14","The Russian","James Patterson and James O. Born",{"$f":"Table_0[[#This Row],[Book]]","v":"The Russian"},{"$f":"Table_0[[#This Row],[Date]]","v":"2021-02-14"},"Thriller Fiction",20.57,"Little, Brown and Company",null,"Harlen Coben"]
["2021-02-21","The Four Winds","Kristin Hannah",{"$f":"Table_0[[#This Row],[Book]]","v":"The Four Winds"},{"$f":"Table_0[[#This Row],[Date]]","v":"2021-02-21"},"Historical Fiction Novel",19.420000000000002,"St. Martin's Press",null,"Amanda Gorman"]
["2021-02-28","The Four Winds","Kristin Hannah",{"$f":"Table_0[[#This Row],[Book]]","v":"The Four Winds"},{"$f":"Table_0[[#This Row],[Date]]","v":"2021-02-28"},"Historical Fiction Novel",19.420000000000002,"St. Martin's Press",null,"John Sandford"]
["2021-03-07","A Court of Silver Flames","Sarah J. Maas",{"$f":"Table_0[[#This Row],[Book]]","v":"A Court of Silver Flames"},{"$f":"Table_0[[#This Row],[Date]]","v":"2021-03-07"},"Fantasy Fiction",28,"Bloomsbury Publishing",null,"David Baldacci"]
["2021-03-14","The Four Winds","Kristin Hannah",{"$f":"Table_0[[#This Row],[Book]]","v":"The Four Winds"},{"$f":"Table_0[[#This Row],[Date]]","v":"2021-03-14"},"Historical Fiction Novel",19.420000000000002,"St. Martin's Press",null,"James Patterson and Maxine Paetro"]
["2021-03-21","Life After Death","Sister Souljah",{"$f":"Table_0[[#This Row],[Book]]","v":"Life After Death"},{"$f":"Table_0[[#This Row],[Date]]","v":"2021-03-21"},"Fiction",27,"Emily Bestler Books",null,"Stacey Abrams"]
["2021-03-28","The Four Winds","Kristin Hannah",{"$f":"Table_0[[#This Row],[Book]]","v":"The Four Winds"},{"$f":"Table_0[[#This Row],[Date]]","v":"2021-03-28"},"Historical Fiction Novel",19.420000000000002,"St. Martin's Press",null,"Laura Dave"]
["2021-04-04","Win","Harlen Coben",{"$f":"Table_0[[#This Row],[Book]]","v":"Win"},{"$f":"Table_0[[#This Row],[Date]]","v":"2021-04-04"},"Thriller Mystery",14.49,"Grand Central Publishing",null,"Nora Roberts"]
["2021-04-11","The Four Winds","Kristin Hannah",{"$f":"Table_0[[#This Row],[Book]]","v":"The Four Winds"},{"$f":"Table_0[[#This Row],[Date]]","v":"2021-04-11"},"Historical Fiction Novel",19.420000000000002,"St. Martin's Press",null,"E. L. James"]
["2021-04-18","The Hill We Climb","Amanda Gorman",{"$f":"Table_0[[#This Row],[Book]]","v":"The Hill We Climb"},{"$f":"Table_0[[#This Row],[Date]]","v":"2021-04-18"},"Poetry",15.99,"Viking Books",null,"Bill Clinton and James Patterson"]
["2021-04-25","The Hill We Climb","Amanda Gorman",{"$f":"Table_0[[#This Row],[Book]]","v":"The Hill We Climb"},{"$f":"Table_0[[#This Row],[Date]]","v":"2021-04-25"},"Poetry",15.99,"Viking Books",null,"Quentin Tarantino"]
["2021-05-02","Ocean Prey","John Sandford",{"$f":"Table_0[[#This Row],[Book]]","v":"Ocean Prey"},{"$f":"Table_0[[#This Row],[Date]]","v":"2021-05-02"},"Mystery Thriller",18.89,"G. P. Putnam's Sons"]
["2021-05-09","A Gambling Man","David Baldacci",{"$f":"Table_0[[#This Row],[Book]]","v":"A Gambling Man"},{"$f":"Table_0[[#This Row],[Date]]","v":"2021-05-09"},"Thriller Mystery",13.49,"Grand Central Publishing"]
["2021-05-16","Sooley","John Grisham",{"$f":"Table_0[[#This Row],[Book]]","v":"Sooley"},{"$f":"Table_0[[#This Row],[Date]]","v":"2021-05-16"},"Adventure Fiction",22.28,"Doubleday"]
["2021-05-23","21st Birthday","James Patterson and Maxine Paetro",{"$f":"Table_0[[#This Row],[Book]]","v":"21st Birthday"},{"$f":"Table_0[[#This Row],[Date]]","v":"2021-05-23"},"Thriller Fiction",17.989999999999998,"Little, Brown and Company"]
["2021-05-30","While Justice Sleeps","Stacey Abrams",{"$f":"Table_0[[#This Row],[Book]]","v":"While Justice Sleeps"},{"$f":"Table_0[[#This Row],[Date]]","v":"2021-05-30"},"Thriller Suspense",22.49,"Doubleday"]
["2021-06-06","The Last Thing He Told Me","Laura Dave",{"$f":"Table_0[[#This Row],[Book]]","v":"The Last Thing He Told Me"},{"$f":"Table_0[[#This Row],[Date]]","v":"2021-06-06"},"Thriller Mystery",20.49,"Simon & Schuster"]
["2021-06-13","Legacy","Nora Roberts",{"$f":"Table_0[[#This Row],[Book]]","v":"Legacy"},{"$f":"Table_0[[#This Row],[Date]]","v":"2021-06-13"},"Romance Novel",20.29,"St. Martin's Press"]
["2021-06-20","Freed","E. L. James",{"$f":"Table_0[[#This Row],[Book]]","v":"Freed"},{"$f":"Table_0[[#This Row],[Date]]","v":"2021-06-20"},"Romance Novel",14.99,"Bloom Books"]
["2021-06-27","The President's Daughter","Bill Clinton and James Patterson",{"$f":"Table_0[[#This Row],[Book]]","v":"The President's Daughter"},{"$f":"Table_0[[#This Row],[Date]]","v":"2021-06-27"},"Suspense Thriller",17.98,"Little, Brown and Company"]
["2021-07-04","The President's Daughter","Bill Clinton and James Patterson",{"$f":"Table_0[[#This Row],[Book]]","v":"The President's Daughter"},{"$f":"Table_0[[#This Row],[Date]]","v":"2021-07-04"},"Suspense Thriller",17.98,"Little, Brown and Company"]
["2021-07-11","The Last Thing He Told Me","Laura Dave",{"$f":"Table_0[[#This Row],[Book]]","v":"The Last Thing He Told Me"},{"$f":"Table_0[[#This Row],[Date]]","v":"2021-07-11"},"Thriller Mystery",20.49,"Simon & Schuster"]
["2021-07-18","Once Upon a Time in Hollywood","Quentin Tarantino",{"$f":"Table_0[[#This Row],[Book]]","v":"Once Upon a Time in Hollywood"},{"$f":"Table_0[[#This Row],[Date]]","v":"2021-07-18"},"Novelization",9.99,"Harper Perennial"]

{"sheet":"Backup----->","index":8,"n_rows":0,"n_cols":0,"rows_kept":0,"cut":false,"hidden":false,"merged":[]}

{"sheet":"Sheet2","index":9,"n_rows":54,"n_cols":19,"rows_kept":54,"cut":false,"hidden":false,"merged":[[36,2,38,2],[36,3,38,3],[4,2,5,2],[4,3,5,3],[9,2,12,2],[9,3,12,3],[21,2,22,2],[21,3,22,3],[22,6,27,6],[22,7,27,7],[26,2,31,2],[26,3,31,3],[33,2,34,2],[33,3,34,3],[0,1,0,3],[6,6,8,6],[6,7,8,7],[10,6,18,6],[10,7,18,7],[47,6,48,6],[47,7,48,7],[0,5,0,7],[2,10,6,10],[2,11,6,11],[7,10,8,10],[7,11,8,11],[16,10,18,10],[16,11,18,11],[23,10,24,10],[29,6,30,6],[29,7,30,7],[34,6,37,6],[34,7,37,7],[40,6,41,6],[40,7,41,7],[51,10,53,10],[51,11,53,11],[0,9,0,11],[2,14,3,14],[17,14,18,14],[23,11,24,11],[28,10,29,10],[28,11,29,11],[30,10,31,10],[30,11,31,11],[35,10,36,10],[35,11,36,11],[9,14,10,14],[9,15,10,15],[9,16,10,16],[45,10,46,10],[45,11,46,11],[0,13,0,16],[2,15,3,15],[2,16,3,16],[4,14,7,14],[4,15,7,15],[4,16,7,16],[17,15,18,15],[17,16,18,16],[27,14,28,14],[27,15,28,15],[27,16,28,16]]}
[null,2018,null,null,null,2019,null,null,null,2020,null,null,null,2021]
[null,"Date","Book","Author",null,"Date","Book","Author",null,"Date","Book","Author",null,"Date","Book","Author","Publisher"]
[null,"2021-01-07","Origin","Dan Brown",null,"2021-01-06","The Reckoning","John Grisham",null,"2021-01-05","Where the Crawdads Sing","Delia Owens",null,"2021-01-03","A Time for Mercy","John Grisham","Doubleday",null,2018]
[null,"2021-01-14","The People vs. Alex Cross","James Patterson",null,"2021-01-13","Long Road to Mercy","David Baldacci",null,"2021-01-12",null,null,null,"2021-01-10",null,null,null,null,2019]
[null,"2021-01-21","The Woman in the Window","A.J. Finn",null,"2021-01-20","Verses for the Dead","Douglas Preston and Lincoln Child",null,"2021-01-19",null,null,null,"2021-01-17","The Duke and I","Julia Quinn","Avon",null,2020]
[null,"2021-01-28",null,null,null,"2021-01-27","Turning Point","Danielle Steel",null,"2021-01-26",null,null,null,"2021-01-24",null,null,null,null,2021]
[null,"2021-02-04","City of Endless Night","Douglas Preston and Lincoln Child",null,"2021-02-03","Where the Crawdads Sing","Delia Owens",null,"2021-02-02",null,null,null,"2021-01-31"]
[null,"2021-02-11","Judgment Road","Christine Feehan",null,"2021-02-10",null,null,null,"2021-02-09","American Dirt","Jeanine Cummins",null,"2021-02-07"]
[null,"2021-02-18","Dark in Death","J.D. Robb",null,"2021-02-17",null,null,null,"2021-02-16",null,null,null,"2021-02-14","The Russian","James Patterson and James O. Born","Little, Brown and Company"]
[null,"2021-02-25","The Great Alone","Kristin Hannah",null,"2021-02-24","Connections in Death","J. D. Robb",null,"2021-02-23","Golden in Death","J.D. Robb",null,"2021-02-21","The Four Winds","Kristin Hannah","St. Martin's Press"]
[null,"2021-03-04",null,null,null,"2021-03-03","Where the Crawdads Sing","Delia Owens",null,"2021-03-01","American Dirt","Jeanine Cummins",null,"2021-02-28"]
[null,"2021-03-11",null,null,null,"2021-03-10",null,null,null,"2021-03-08","One Minute Out","Mark Greaney",null,"2021-03-07","A Court of Silver Flames","Sarah J. Maas","Bloomsbury Publishing"]
[null,"2021-03-18",null,null,null,"2021-03-17",null,null,null,"2021-03-15","Blindside","James Patterson and James O. Born",null,"2021-03-14","The Four Winds","Kristin Hannah","St. Martin's Press"]
[null,"2021-03-25","Burn Bright","Patricia Briggs",null,"2021-03-24",null,null,null,"2021-03-22","House of Earth and Blood","Sarah J. Maas",null,"2021-03-21","Life After Death","Sister Souljah","Emily Bestler Books"]
[null,"2021-04-01","The Rising Sea","Clive Cussler and Graham Brown",null,"2021-03-31",null,null,null,"2021-03-29","The Mirror and the Light","Hilary Mantel",null,"2021-03-28","The Four Winds","Kristin Hannah","St. Martin's Press"]
[null,"2021-04-08","Accidental Heroes","Danielle Steel",null,"2021-04-07",null,null,null,"2021-04-05","The Boy from the Woods","Harlan Coben",null,"2021-04-04","Win","Harlen Coben","Grand Central Publishing"]
[null,"2021-04-15","The Disappeared","C. J. Box",null,"2021-04-14",null,null,null,"2021-04-12","Little Fires Everywhere","Celeste Ng",null,"2021-04-11","The Four Winds","Kristin Hannah","St. Martin's Press"]
[null,"2021-04-22","Ready Player One","Ernest Cline",null,"2021-04-21",null,null,null,"2021-04-19",null,null,null,"2021-04-18","The Hill We Climb","Amanda Gorman","Viking Books"]
[null,"2021-04-29","The Thief","J.R. Ward",null,"2021-04-28",null,null,null,"2021-04-25",null,null,null,"2021-04-25"]
[null,"2021-05-06","The Fallen","David Baldacci",null,"2021-05-05","Redemption","David Baldacci",null,"2021-05-03","Masked Prey","John Sandford",null,"2021-05-02","Ocean Prey","John Sandford","G. P. Putnam's Sons"]
[null,"2021-05-13","Twisted Prey","John Sandford",null,"2021-05-12","Neon Prey","John Sandford",null,"2021-05-10","Walk The Wire","David Baldacci",null,"2021-05-09","A Gambling Man","David Baldacci","Grand Central Publishing"]
[null,"2021-05-20","The 17th Suspect","James Patterson and Maxine Paetro",null,"2021-05-19","18th Abduction","James Patterson and Maxine Paetro",null,"2021-05-17","Camino Winds","John Grisham",null,"2021-05-16","Sooley","John Grisham","Doubleday"]
[null,"2021-05-27",null,null,null,"2021-05-26","Where the Crawdads Sing","Delia Owens",null,"2021-05-24","The 20th Victim","James Patterson and Maxine Paetro",null,"2021-05-23","21st Birthday","James Patterson and Maxine Paetro","Little, Brown and Company"]
[null,"2021-06-03","The Cast","Danielle Steel",null,"2021-06-02",null,null,null,"2021-05-31","Camino Winds","John Grisham",null,"2021-05-30","While Justice Sleeps","Stacey Abrams","Doubleday"]
[null,"2021-06-10","The Outsider","Stephen King",null,"2021-06-09",null,null,null,"2021-06-07",null,null,null,"2021-06-06","The Last Thing He Told Me","Laura Dave","Simon & Schuster"]
[null,"2021-06-17","Shelter in Place","Nora Roberts",null,"2021-06-16",null,null,null,"2021-06-14","Hideaway","Nora Roberts",null,"2021-06-13","Legacy","Nora Roberts","St. Martin's Press"]
[null,"2021-06-24","The President Is Missing","James Patterson and Bill Clinton",null,"2021-06-23",null,null,null,"2021-06-21","The Vanishing Half","Brit Bennett",null,"2021-06-20","Freed","E. L. James","Bloom Books"]
[null,"2021-07-01",null,null,null,"2021-06-30",null,null,null,"2021-06-28","The Summer House","James Patterson and Brendan DuBois",null,"2021-06-27","The President's Daughter","Bill Clinton and James Patterson","Little, Brown and Company"]
[null,"2021-07-08",null,null,null,"2021-07-07","Summer of '69","Elin Hilderbrand",null,"2021-07-05","28 Summers","Elin Hilderbrand",null,"2021-07-04"]
[null,"2021-07-15",null,null,null,"2021-07-14","Where the Crawdads Sing","Delia Owens",null,"2021-07-12",null,null,null,"2021-07-11","The Last Thing He Told Me","Laura Dave","Simon & Schuster"]
[null,"2021-07-22",null,null,null,"2021-07-21",null,null,null,"2021-07-19","The Vanishing Half","Brit Bennett",null,"2021-07-18","Once Upon a Time in Hollywood","Quentin Tarantino","Harper Perennial"]
[null,"2021-07-29",null,null,null,"2021-07-28","Under Currents","Nora Roberts",null,"2021-07-26"]
[null,"2021-08-05","The Other Woman","Daniel Silva",null,"2021-08-04","The New Girl","Daniel Silva",null,"2021-08-02","The Order","Daniel Silva"]
[null,"2021-08-12","Origin","Dan Brown",null,"2021-08-11","One Good Deed","David Baldacci",null,"2021-08-09","Near Dark","Brad Thor"]
[null,"2021-08-19",null,null,null,"2021-08-18","Where the Crawdads Sing","Delia Owens",null,"2021-08-16","Deadlock","Catherine Coulter"]
[null,"2021-08-26","Tailspin","Sandra Brown",null,"2021-08-25",null,null,null,"2021-08-23","Where the Crawdads Sing","Delia Owens"]
[null,"2021-09-02","Crazy Rich Asians","Kevin Kwan",null,"2021-09-01",null,null,null,"2021-08-30"]
[null,"2021-09-09",null,null,null,"2021-09-08",null,null,null,"2021-09-06","Royal","Danielle Steel"]
[null,"2021-09-16",null,null,null,"2021-09-15","A Better Man","Louise Penny",null,"2021-09-13","Thick as Thieves","Sandra Brown"]
[null,"2021-09-23","Leverage In Death","J.D. Robb",null,"2021-09-22","Vendetta in Death","J. D. Robb",null,"2021-09-20","All the Devils Are Here","Louise Penny"]
[null,"2021-09-30","Juror #3","James Patterson and Nancy Allen",null,"2021-09-29","The Institute","Stephen King",null,"2021-09-27","Shadows in Death","J.D. Robb"]
[null,"2021-10-07","Lethal White","Robert Galbraith",null,"2021-10-06",null,null,null,"2021-10-04","The Evening and the Morning","Ken Follett"]
[null,"2021-10-14","Vince Flynn: Red War","Kyle Mills",null,"2021-10-13","The Water Dancer","Ta-Nehisi Coates",null,"2021-10-11","The Book of Two Ways","Jodi Picoult"]
[null,"2021-10-21","A Spark Of Light","Jodi Picoult",null,"2021-10-20","Bloody Genius","John Sandford",null,"2021-10-18","The Return","Nicholas Sparks"]
[null,"2021-10-28","Holy Ghost","John Sanford",null,"2021-10-27","The 19th Christmas","James Patterson and Maxine Paetro",null,"2021-10-25","Troubles in Paradise","Elin Hilderbrand"]
[null,"2021-11-04","Every Breath","Nicholas Sparks",null,"2021-11-03","The Guardians","John Grisham",null,"2021-11-01","A Time for Mercy","John Grisham"]
[null,"2021-11-11","The Reckoning","John Grisham",null,"2021-11-10","The Night Fire","Michael Connelly",null,"2021-11-08"]
[null,"2021-11-18","Dark Sacred Night","Michael Connelly",null,"2021-11-17","Blue Moon","Lee Child",null,"2021-11-15","The Sentinel","Lee Child and Andrew Child"]
[null,"2021-11-25","Past Tense","Lee Child",null,"2021-11-24",null,null,null,"2021-11-22","Fortune and Glory","Janet Evanovich"]
[null,"2021-12-02","Look Alive Twenty-Five","Janet Evanovich",null,"2021-12-01","Twisted Twenty-Six","Janet Evanovich",null,"2021-11-29","The Law of Innocence","Michael Connelly"]
[null,"2021-12-09","Fire and Blood","George R. R. Martin",null,"2021-12-08","A Minute to Midnight","David Baldacci",null,"2021-12-06","Rhythm of War","Brandon Sanderson"]
[null,"2021-12-16","Kingdom of the Blind","Louise Penny",null,"2021-12-15","The Rise of Magicks","Nora Roberts",null,"2021-12-13","Ready Player Two","Ernest Cline"]
[null,"2021-12-23","Of Blood and Bone","Nora Roberts",null,"2021-12-22","The Guardians","John Grisham",null,"2021-12-20"]
[null,"2021-12-30","The Reckoning","John Grisham",null,"2021-12-29","Where The Crawdads Sing","Delia Owens",null,"2021-12-27"]

{"sheet":"Sheet4","index":10,"n_rows":69,"n_cols":7,"rows_kept":69,"cut":false,"hidden":false,"merged":[]}
[null,null,"Books",null,"Genres"]
[null,"Authors",null,null,{"$f":"_xlfn.UNIQUE(Table_0__4[Genre])","v":"Crime Mystery Novel"},null,{"$f":"_xlfn.UNIQUE(E2:E69)","v":"Crime Mystery Novel"}]
[null,"Dan Brown","Origin",null,"Thriller Fiction",null,"Thriller Fiction"]
[null,"James Patterson","The People vs. Alex Cross",null,"Thriller Fiction Novel",null,"Thriller Fiction Novel"]
[null,"A.J. Finn",null,null,"Mystery Thriller Fiction",null,"Mystery Thriller Fiction"]
[null,"Douglas Preston and Lincoln Child",null,null,"Romance Novel",null,"Romance Novel"]
[null,"Christine Feehan",{"$f":"IFERROR(IF(Dashboard!$B$4=2018,VLOOKUP(Dashboard!$D$5,Table_0__4[[Author]:[Column2]],3,FALSE),IF(Dashboard!$B$4=2019,VLOOKUP(Dashboard!$D$5,Table_0__3[[Author]:[Column2]],3,FALSE),IF(Dashboard!$B$4=2020,VLOOKUP(Dashboard!$D$5,Table_0__2[[Author]:[Column2]],3,FALSE),IF(Dashboard!$B$4=2021,VLOOKUP(Dashboard!$D$5,'2021 NYT BSL'!#REF!,3,FALSE),\"\")))),\"No Book\")","v":"No Book"},null,"Mystery Suspense Novel",null,"Mystery Suspense Novel"]
[null,"J.D. Robb",{"$f":"IFERROR(IF(Dashboard!$B$4=2018,VLOOKUP(Dashboard!$D$5,Table_0__4[[Author]:[Column2]],2,FALSE),IF(Dashboard!$B$4=2019,VLOOKUP(Dashboard!$D$5,Table_0__3[[Author]:[Column2]],2,FALSE),IF(Dashboard!$B$4=2020,VLOOKUP(Dashboard!$D$5,Table_0__2[[Author]:[Column2]],2,FALSE),IF(Dashboard!$B$4=2021,VLOOKUP(Dashboard!$D$5,Table_0[[Author]:[Column1]],2,FALSE),\"\")))),\"No Book\")","v":"No Book"},null,"Domestic Fiction Novel",null,"Domestic Fiction Novel"]
[null,"Kristin Hannah",null,null,"Supernatural Fiction",null,"Supernatural Fiction"]
[null,"Patricia Briggs",null,null,"Thriller",null,"Thriller"]
[null,"Clive Cussler and Graham Brown",null,null,"Science Fiction",null,"Science Fiction"]
[null,"Danielle Steel",null,null,"Thriller Crime Fiction",null,"Thriller Crime Fiction"]
[null,"C. J. Box",null,null,"Thriller Mystery Fiction",null,"Thriller Mystery Fiction"]
[null,"Ernest Cline",null,null,"Thriller Novel Fiction",null,"Thriller Novel Fiction"]
[null,"J.R. Ward",null,null,"Thriller Mystery Novel",null,"Thriller Mystery Novel"]
[null,"David Baldacci",null,null,"Spy Thriller Fiction",null,"Spy Thriller Fiction"]
[null,"John Sandford",null,null,"Thriller Romance Novel",null,"Thriller Romance Novel"]
[null,"James Patterson and Maxine Paetro",null,null,"Romance Comedy Novel",null,"Romance Comedy Novel"]
[null,"Stephen King",null,null,"Mystery Crime Novel",null,"Mystery Crime Novel"]
[null,"Nora Roberts",null,null,"Thriller Novel ",null,"Thriller Novel "]
[null,"James Patterson and Bill Clinton",null,null,"Thriller Novel",null,"Thriller Novel"]
[null,"Daniel Silva",null,null,"Fantasy Fiction",null,"Fantasy Fiction"]
[null,"Sandra Brown",null,null,"Mystery Thriller",null,"Mystery Thriller"]
[null,"Kevin Kwan",null,null,"Young Adult Fiction",null,"Young Adult Fiction"]
[null,"James Patterson and Nancy Allen",null,null,null,null,0]
[null,"Robert Galbraith",null,null,{"$f":"_xlfn.UNIQUE(Table_0__3[Genre])","v":"Thriller Novel"},null,"Thriller Mystery"]
[null,"Kyle Mills",null,null,"Romance Novel",null,"Historical Fiction"]
[null,"Jodi Picoult",null,null,"Thriller Mystery Novel",null,"Thriller Spy Fiction"]
[null,"John Sanford",null,null,"Thriller Mystery",null,"Thriller Suspense Fiction"]
[null,"Nicholas Sparks",null,null,"Thriller Mystery Fiction",null,"Mystery Fiction"]
[null,"John Grisham",null,null,"Historical Fiction",null,"Horror Fiction"]
[null,"Michael Connelly",null,null,"Thriller Spy Fiction",null,"Thriller Science Fiction"]
[null,"Lee Child",null,null,"Thriller Suspense Fiction",null,"Thriller Adventure Fiction"]
[null,"Janet Evanovich",null,null,"Mystery Thriller",null,"Novel"]
[null,"George R. R. Martin",null,null,"Mystery Fiction",null,"Mystery Historical Fiction"]
[null,"Louise Penny",null,null,"Horror Fiction",null,"Thriller Romantic"]
[null,"Delia Owens",null,null,"Thriller Fiction",null,"Romantic Suspense Novel"]
[null,"J. D. Robb",null,null,"Fantasy Fiction",null,"Psychological Fiction"]
[null,"Elin Hilderbrand",null,null,"Thriller",null,"Domestic Fiction"]
[null,"Ta-Nehisi Coates",null,null,"Thriller Science Fiction",null,"Historical Fiction Novel"]
[null,"Jeanine Cummins",null,null,null,null,"Fiction"]
[null,"Mark Greaney",null,null,{"$f":"_xlfn.UNIQUE(Table_0__2[Genre])","v":"Romance Novel"},null,"Poetry"]
[null,"James Patterson and James O. Born",null,null,"Thriller Fiction",null,"Adventure Fiction"]
[null,"Sarah J. Maas",null,null,"Thriller Mystery Fiction",null,"Thriller Suspense"]
[null,"Hilary Mantel",null,null,"Thriller Adventure Fiction",null,"Suspense Thriller"]
[null,"Harlan Coben",null,null,"Fantasy Fiction",null,"Novelization"]
[null,"Celeste Ng",null,null,"Historical Fiction"]
[null,"Brit Bennett",null,null,"Novel"]
[null,"James Patterson and Brendan DuBois",null,null,"Mystery Thriller"]
[null,"Brad Thor",null,null,"Mystery Historical Fiction"]
[null,"Catherine Coulter",null,null,"Thriller Mystery"]
[null,"Ken Follett",null,null,"Thriller Romantic"]
[null,"Lee Child and Andrew Child",null,null,"Mystery Fiction"]
[null,"Brandon Sanderson",null,null,"Romantic Suspense Novel"]
[null,"Julia Quinn",null,null,"Psychological Fiction"]
[null,"Sister Souljah",null,null,"Domestic Fiction"]
[null,"Harlen Coben",null,null,"Science Fiction"]
[null,"Amanda Gorman",null,null,{"$f":"_xlfn.UNIQUE(Table_0[Genre])","v":"Thriller Fiction"}]
[null,"Stacey Abrams",null,null,"Romance Novel"]
[null,"Laura Dave",null,null,"Historical Fiction Novel"]
[null,"E. L. James",null,null,"Fantasy Fiction"]
[null,"Bill Clinton and James Patterson",null,null,"Fiction"]
[null,"Quentin Tarantino",null,null,"Thriller Mystery"]
[null,null,null,null,"Poetry"]
[null,null,null,null,"Mystery Thriller"]
[null,null,null,null,"Adventure Fiction"]
[null,null,null,null,"Thriller Suspense"]
[null,null,null,null,"Suspense Thriller"]
[null,null,null,null,"Novelization"]

{"sheet":"Time Tracker","index":11,"n_rows":6,"n_cols":3,"rows_kept":6,"cut":false,"hidden":false,"merged":[]}
[]
[null,"2021-07-07","25 min"]
[null,"2021-07-08","1 hr"]
[null,"2021-07-12","45 min"]
[null,"2021-07-13","4 hr"]
[null,"2021-07-14","2 hr"]

{"sheet":"Sheet1","index":12,"n_rows":2,"n_cols":1,"rows_kept":2,"cut":false,"hidden":false,"merged":[[0,0,0,6],[1,0,1,6]]}
["HONESTY WARNING (do not edit, hide, or move this)"]
["BEFORE you do anything with this file, CLICK HERE and carefully read"]

{"sheet":"VBA","index":13,"n_rows":2,"n_cols":1,"rows_kept":2,"cut":false,"hidden":true,"merged":[]}
["Spring 2021"]
["Harrell-02"]